fUST/lending_fUST_20241013
["ID","MTS","AMOUNT","RATE_DAILY","PERIOD"]
[340202403,1728833441465,-512.63862304,0.00027397,2]
[340202404,1728833441475,-401.10895923,0.00027397,2]
[340202405,1728833441486,-500.0,0.00027397,2]
[340202406,1728833441496,-500.0,0.00027397,2]
[340202407,1728833441508,-500.0,0.00027397,2]
[340202408,1728833441521,-315.77304685,0.00027397,2]
[340202409,1728833441531,-500.0,0.00027397,2]
[340202410,1728833441541,-500.0,0.00027397,2]
[340202411,1728833441553,-464.685848,0.00027397,2]
[340202412,1728833441564,-6404.77389339,0.00027458,2]
[340202413,1728833441574,-1000.0,0.000275,2]
[340202414,1728833441585,-150.112233,0.000276,10]
[340202415,1728833441595,-150.112233,0.000276,7]
[340202416,1728833441607,-2446.50393842,0.00027661,4]
[340202417,1728833441618,-151.0,0.00027661,7]
[340202418,1728833441629,-151.0,0.00027661,7]
[340202419,1728833441639,-151.0,0.00027661,7]
[340202420,1728833441649,-151.0,0.00027661,7]
[340202421,1728833441659,-151.0,0.00027661,7]
[340202422,1728833441668,-151.0,0.00027661,7]
[340202423,1728833441678,-500.0,0.00027671,2]
[340202424,1728833441690,-500.0,0.00027671,2]
[340202425,1728833441699,-500.0,0.00027671,2]
[340202426,1728833441709,-500.0,0.00027671,2]
[340202427,1728833441718,-500.0,0.00027671,2]
[340202428,1728833441727,-500.0,0.00027671,2]
[340202429,1728833441737,-861.93,0.00027671,2]
[340202430,1728833441747,-500.0,0.00027671,2]
[340202431,1728833441757,-500.0,0.00027671,2]
[340202432,1728833441767,-1391.35,0.00027671,2]
[340202433,1728833441778,-612.98190293,0.00027671,2]
[340202434,1728833441788,-500.0,0.00027671,2]
[340202435,1728833441797,-500.0,0.00027671,2]
[340202436,1728833441807,-500.0,0.00027671,2]
[340202437,1728833441817,-500.0,0.00027671,2]
[340202438,1728833441827,-500.0,0.00027671,2]
[340202439,1728833441837,-500.0,0.00027671,2]
[340202440,1728833441846,-500.0,0.00027671,2]
[340202441,1728833441858,-989.65,0.00027671,2]
[340202442,1728833441869,-500.0,0.00027671,2]
[340202443,1728833441879,-500.0,0.00027671,2]
[340202444,1728833441889,-1077.32,0.00027671,2]
[340202445,1728833441899,-2000.0,0.00027671,2]
[340202446,1728833441909,-7766.57,0.00027671,2]
[340202447,1728833441920,-500.0,0.00027671,2]
[340202448,1728833441930,-617.99656522,0.00027671,2]
[340202449,1728833441944,-645.56,0.00027671,2]
[340202450,1728833441954,-500.0,0.00027671,2]
[340202451,1728833441965,-2041.26,0.00027671,2]
[340202452,1728833441975,-500.0,0.00027671,2]
[340202453,1728833441985,-500.0,0.00027671,2]
[340202454,1728833441995,-3805.75,0.00027671,2]
[340202455,1728833442004,-266.15709081,0.00027671,2]
[340202456,1728833442014,-500.0,0.00027671,2]
[340202457,1728833442024,-500.0,0.00027671,2]
[340202458,1728833442033,-500.0,0.00027671,2]
[340202459,1728833442043,-353.580738,0.00027671,2]
[340202460,1728833442052,-33290.15,0.00027671,2]
[340202461,1728833442062,-500.0,0.00027671,2]
[340202462,1728833442072,-500.0,0.00027671,2]
[340202463,1728833442082,-500.0,0.00027671,2]
[340202464,1728833442091,-529.32,0.00027671,2]
[340202465,1728833442100,-500.0,0.00027671,2]
[340202466,1728833442110,-368.91803067,0.00027671,2]
[340202467,1728833442119,-500.0,0.00027671,2]
[340202468,1728833442130,-500.0,0.00027671,2]
[340202469,1728833442139,-248.0,0.00027671,2]
[340202470,1728833442150,-500.0,0.00027673,5]
[340202471,1728833442159,-500.0,0.00027673,5]
[340202472,1728833442168,-500.0,0.00027673,5]
[340202473,1728833442177,-499.39414826,0.00027673,5]
[340202474,1728833442195,-0.60585174,0.00027673,5]
[340202475,1728833442205,-500.0,0.00027673,5]
[340202476,1728833442215,-500.0,0.00027673,5]
[340202477,1728833442224,-150.0,0.00027673,5]
[340202478,1728833442233,-1223.25196921,0.00027935,4]
[340202479,1728833442242,-6404.77389339,0.0002794,2]
[340202480,1728833442252,-151.0,0.00027945,3]
[340202481,1728833442262,-151.0,0.00027945,7]
[340202482,1728833442272,-151.0,0.00027945,2]
[340202483,1728833442284,-500.0,0.00027945,2]
[340202484,1728833442294,-500.0,0.00027945,2]
[340202485,1728833442305,-500.0,0.00027945,2]
[340202486,1728833442314,-515.92186598,0.00027945,2]
[340202487,1728833442324,-500.0,0.00027945,2]
[340202488,1728833442334,-151.0,0.00027945,7]
[340202489,1728833442345,-500.0,0.00027945,2]
[340202490,1728833442355,-861.93,0.00027945,2]
[340202491,1728833442364,-500.0,0.00027945,2]
[340202492,1728833442374,-151.0,0.00027945,7]
[340202493,1728833442385,-151.0,0.00027945,7]
[340202494,1728833442396,-151.0,0.00027945,7]
[340202495,1728833442406,-151.0,0.00027945,7]
[340202496,1728833442417,-500.0,0.00027945,2]
[340202497,1728833442426,-1391.35,0.00027945,2]
[340202498,1728833442439,-151.0,0.00027945,7]
[340202499,1728833442450,-500.0,0.00027945,2]
[340202500,1728833442460,-500.0,0.00027945,2]
[340202501,1728833442470,-190.472358,0.00027945,7]
[340202502,1728833442480,-151.0,0.00027945,7]
[340202504,1728833442490,-500.0,0.00027945,2]
[340202506,1728833442499,-500.0,0.00027945,2]
[340202508,1728833442511,-229.142606,0.00027945,7]
[340202509,1728833442521,-425.14341391,0.00027945,2]
[340202510,1728833442531,-500.0,0.00027945,2]
[340202511,1728833442541,-151.0,0.00027945,7]
[340202512,1728833442551,-151.0,0.00027945,7]
[340202513,1728833442560,-164.517391,0.00027945,7]
[340202514,1728833442571,-158.55,0.00027945,7]
[340202515,1728833442581,-164.517391,0.00027945,7]
[340202516,1728833442590,-158.55,0.00027945,7]
[340202517,1728833442601,-222.809206,0.00027945,7]
[340202519,1728833442612,-222.809206,0.00027945,7]
[340202521,1728833442622,-151.0,0.00027945,7]
[340202522,1728833442632,-151.0,0.00027945,7]
[340202523,1728833442642,-151.0,0.00027945,7]
[340202526,1728833442652,-500.0,0.00027945,2]
[340202529,1728833442662,-151.0,0.00027945,7]
[340202531,1728833442673,-989.65,0.00027945,2]
[340202533,1728833442682,-151.0,0.00027945,7]
[340202534,1728833442694,-151.0,0.00027945,7]
[340202535,1728833442704,-318.27208081,0.00027945,2]
[340202536,1728833442714,-151.0,0.00027945,7]
[340202537,1728833442723,-784.162817,0.00027945,7]
[340202539,1728833442733,-784.162817,0.00027945,7]
[340202540,1728833442742,-151.0,0.00027945,7]
[340202541,1728833442752,-500.0,0.00027945,2]
[340202542,1728833442762,-151.0,0.00027945,7]
[340202543,1728833442772,-1077.32,0.00027945,2]
[340202544,1728833442781,-2000.0,0.00027945,2]
[340202545,1728833442791,-7766.57,0.00027945,2]
[340202546,1728833442800,-500.0,0.00027945,2]
[340202547,1728833442810,-205.097065,0.00027945,7]
[340202548,1728833442819,-205.097065,0.00027945,7]
[340202549,1728833442828,-645.56,0.00027945,2]
[340202550,1728833442838,-151.0,0.00027945,7]
[340202552,1728833442848,-687.530538,0.00027945,7]
[340202554,1728833442857,-687.530538,0.00027945,7]
[340202556,1728833442867,-2041.26,0.00027945,2]
[340202557,1728833442876,-500.0,0.00027945,2]
[340202559,1728833442886,-151.0,0.00027945,7]
[340202561,1728833442897,-263.126396,0.00027945,7]
[340202563,1728833442907,-500.0,0.00027945,2]
[340202565,1728833442916,-3805.75,0.00027945,2]
[340202571,1728833442926,-500.0,0.00027945,2]
[340202572,1728833443001,-503.48903114,0.00027945,2]
[340202573,1728833443012,-500.0,0.00027945,2]
[340202574,1728833443022,-18840.32846982,0.00027945,2]
[340202575,1728833443074,-4876.19432851,0.000249,2]
[340202576,1728833443086,-500.0,0.00027397,2]
[340202577,1728833443097,-510.50887517,0.00027671,2]
[340202578,1728833443108,-14449.82153018,0.00027945,2]
[340202579,1728833443118,-151.0,0.00027945,7]
[340202580,1728833443129,-151.0,0.00027945,7]
[340202581,1728833443139,-500.0,0.00027945,2]
[340202582,1728833443150,-151.0,0.00027945,7]
[340202583,1728833443162,-500.0,0.00027945,2]
[340202584,1728833443174,-529.32,0.00027945,2]
[340202585,1728833443185,-500.0,0.00027945,2]
[340202586,1728833443195,-500.0,0.00027973,5]
[340202587,1728833443205,-500.0,0.00027973,5]
[340202588,1728833443215,-500.0,0.00027973,5]
[340202589,1728833443224,-168.65502454,0.00027973,5]
[340202590,1728833443234,-500.0,0.00027973,5]
[340202591,1728833443245,-492.9624492,0.00027975,2]
[340202592,1728833443256,-1158.90904515,0.0002799,7]
[340202593,1728833443266,-150.0,0.00028041,2]
[340202594,1728833443277,-6404.77389339,0.00028041,2]
[340202595,1728833443289,-151.0,0.00028042,7]
[340202596,1728833443299,-151.0,0.00028106,7]
[340202597,1728833443309,-151.0,0.00028199,7]
[340202598,1728833443320,-151.0,0.00028199,7]
[340202599,1728833443331,-151.0,0.00028199,7]
[340202600,1728833443341,-151.0,0.00028202,7]
[340202601,1728833443352,-151.0,0.00028202,7]
[340202602,1728833443363,-196.127807,0.00028202,7]
[340202603,1728833443372,-2446.50393842,0.00028209,4]
[340202604,1728833443382,-500.0,0.00028219,2]
[340202605,1728833443392,-500.97248591,0.00028219,2]
[340202606,1728833443402,-500.0,0.00028219,2]
[340202607,1728833443411,-500.0,0.00028219,2]
[340202608,1728833443420,-500.0,0.00028219,2]
[340202609,1728833443430,-861.93,0.00028219,2]
[340202610,1728833443442,-500.0,0.00028219,2]
[340202611,1728833443451,-500.0,0.00028219,2]
[340202612,1728833443460,-1391.35,0.00028219,2]
[340202613,1728833443469,-500.0,0.00028219,2]
[340202614,1728833443478,-500.0,0.00028219,2]
[340202615,1728833443489,-500.0,0.00028219,2]
[340202616,1728833443502,-500.0,0.00028219,2]
[340202617,1728833443515,-500.0,0.00028219,2]
[340202618,1728833443525,-500.0,0.00028219,2]
[340202619,1728833443535,-989.65,0.00028219,2]
[340202620,1728833443545,-500.0,0.00028219,2]
[340202621,1728833443554,-1077.32,0.00028219,2]
[340202622,1728833443564,-2000.0,0.00028219,2]
[340202623,1728833443574,-7766.57,0.00028219,2]
[340202624,1728833443584,-500.0,0.00028219,2]
[340202625,1728833443595,-645.56,0.00028219,2]
[340202626,1728833443606,-2041.26,0.00028219,2]
[340202627,1728833443616,-500.0,0.00028219,2]
[340202628,1728833443627,-3805.75,0.00028219,2]
[340202629,1728833443638,-500.0,0.00028219,2]
[340202630,1728833443648,-33290.15,0.00028219,2]
[340202631,1728833443657,-500.0,0.00028219,2]
[340202632,1728833443667,-500.0,0.00028219,2]
[340202633,1728833443677,-529.32,0.00028219,2]
[340202634,1728833443687,-500.0,0.00028219,2]
[340202635,1728833443699,-250.0,0.00028221,5]
[340202636,1728833443709,-6404.7738934,0.00028338,2]
[340202637,1728833443720,-150.0,0.00028353,2]
[340202638,1728833443731,-1016.474909,0.000284,2]
[340202639,1728833443741,-153.0,0.00028406,2]
[340202640,1728833443751,-153.0,0.00028406,2]
[340202641,1728833443761,-153.0,0.00028406,2]
[340202642,1728833443771,-153.0,0.00028406,2]
[340202643,1728833443781,-153.0,0.00028406,2]
[340202644,1728833443790,-153.0,0.00028406,2]
[340202645,1728833443800,-153.0,0.00028406,2]
[340202646,1728833443809,-153.0,0.00028406,2]
[340202647,1728833443820,-153.0,0.00028406,2]
[340202648,1728833443832,-153.0,0.00028406,2]
[340202649,1728833443843,-153.0,0.00028406,2]
[340202650,1728833443853,-153.0,0.00028406,2]
[340202651,1728833443863,-153.0,0.00028406,2]
[340202652,1728833443872,-153.0,0.00028406,2]
[340202653,1728833443882,-153.0,0.00028409,2]
[340202654,1728833443894,-153.0,0.00028409,2]
[340202655,1728833443905,-153.0,0.00028409,2]
[340202656,1728833443915,-153.0,0.00028409,2]
[340202657,1728833443925,-153.0,0.00028409,2]
[340202658,1728833443937,-153.0,0.00028409,2]
[340202659,1728833443947,-153.0,0.00028409,2]
[340202660,1728833443958,-153.0,0.00028409,2]
[340202661,1728833443969,-153.0,0.00028409,2]
[340202662,1728833443978,-153.0,0.00028409,2]
[340202663,1728833443988,-153.0,0.00028409,2]
[340202664,1728833443998,-153.0,0.00028409,2]
[340202665,1728833444009,-153.0,0.00028409,2]
[340202666,1728833444018,-153.0,0.00028409,2]
[340202667,1728833444029,-153.0,0.00028409,2]
[340202668,1728833444039,-153.0,0.00028409,2]
[340202669,1728833444050,-153.0,0.00028409,2]
[340202670,1728833444061,-153.0,0.00028409,2]
[340202671,1728833444071,-153.0,0.00028409,2]
[340202672,1728833444080,-153.0,0.00028409,2]
[340202673,1728833444090,-153.0,0.00028409,2]
[340202674,1728833444099,-153.0,0.00028409,2]
[340202675,1728833444108,-153.0,0.00028409,2]
[340202676,1728833444118,-153.0,0.00028409,2]
[340202677,1728833444127,-153.0,0.00028409,2]
[340202678,1728833444135,-153.0,0.00028409,2]
[340202679,1728833444145,-153.0,0.00028409,2]
[340202680,1728833444154,-153.0,0.00028409,2]
[340202681,1728833444163,-153.0,0.00028409,2]
[340202682,1728833444173,-150.0,0.00028473,5]
[340202683,1728833444183,-1223.25196921,0.00028483,4]
[340202684,1728833444195,-1000.0,0.0002849,2]
[340202685,1728833444205,-182.42681526,0.00028492,2]
[340202686,1728833444215,-701.89921494,0.00028492,2]
[340202687,1728833444224,-165.212243,0.00028493,3]
[340202688,1728833444234,-151.0,0.00028493,7]
[340202689,1728833444243,-151.0,0.00028493,2]
[340202690,1728833444253,-500.0,0.00028493,2]
[340202691,1728833444262,-500.0,0.00028493,2]
[340202692,1728833444272,-151.0,0.00028493,7]
[340202693,1728833444281,-505.93742441,0.00028493,2]
[340202694,1728833444290,-151.0,0.00028493,7]
[340202695,1728833444299,-500.0,0.00028493,2]
[340202696,1728833444309,-861.93,0.00028493,2]
[340202697,1728833444319,-151.0,0.00028493,7]
[340202698,1728833444329,-498.88088358,0.00028493,2]
[340202699,1728833444338,-151.0,0.00028493,7]
[340202700,1728833444349,-151.0,0.00028493,7]
[340202701,1728833444359,-151.0,0.00028493,7]
[340202702,1728833444369,-151.0,0.00028493,7]
[340202703,1728833444380,-500.0,0.00028493,2]
[340202704,1728833444390,-1391.35,0.00028493,2]
[340202705,1728833444400,-151.0,0.00028493,7]
[340202706,1728833444412,-500.0,0.00028493,2]
[340202707,1728833444423,-500.0,0.00028493,2]
[340202708,1728833444435,-190.472358,0.00028493,7]
[340202709,1728833444445,-500.0,0.00028493,2]
[340202710,1728833444455,-500.0,0.00028493,2]
[340202711,1728833444465,-500.0,0.00028493,2]
[340202712,1728833444474,-151.0,0.00028493,7]
[340202713,1728833444486,-151.0,0.00028493,7]
[340202714,1728833444496,-158.55,0.00028493,7]
[340202715,1728833444506,-164.517391,0.00028493,7]
[340202716,1728833444520,-164.517391,0.00028493,7]
[340202717,1728833444594,-158.55,0.00028493,7]
[340202718,1728833444606,-222.809206,0.00028493,7]
[340202719,1728833444616,-222.809206,0.00028493,7]
[340202720,1728833444626,-151.0,0.00028493,7]
[340202721,1728833444636,-151.0,0.00028493,7]
[340202722,1728833444648,-151.0,0.00028493,7]
[340202723,1728833444657,-500.0,0.00028493,2]
[340202724,1728833444668,-151.0,0.00028493,7]
[340202725,1728833444678,-989.65,0.00028493,2]
[340202726,1728833444688,-151.0,0.00028493,7]
[340202727,1728833444698,-151.0,0.00028493,7]
[340202728,1728833444707,-151.0,0.00028493,7]
[340202729,1728833444719,-784.162817,0.00028493,7]
[340202730,1728833444730,-784.162817,0.00028493,7]
[340202731,1728833444740,-151.0,0.00028493,7]
[340202732,1728833444751,-500.0,0.00028493,2]
[340202733,1728833444760,-151.0,0.00028493,7]
[340202734,1728833444770,-1077.32,0.00028493,2]
[340202735,1728833444779,-2000.0,0.00028493,2]
[340202736,1728833444789,-7766.57,0.00028493,2]
[340202737,1728833444798,-151.0,0.00028493,7]
[340202738,1728833444807,-500.0,0.00028493,2]
[340202739,1728833444817,-151.0,0.00028493,7]
[340202740,1728833444827,-205.097065,0.00028493,7]
[340202741,1728833444836,-205.097065,0.00028493,7]
[340202742,1728833444845,-645.56,0.00028493,2]
[340202743,1728833444855,-151.0,0.00028493,7]
[340202744,1728833444865,-151.0,0.00028493,7]
[340202745,1728833444875,-170.606129,0.00028493,7]
[340202746,1728833444885,-687.530538,0.00028493,7]
[340202747,1728833444895,-151.0,0.00028493,7]
[340202748,1728833444904,-687.530538,0.00028493,7]
[340202749,1728833444914,-2041.26,0.00028493,2]
[340202750,1728833444925,-151.0,0.00028493,7]
[340202751,1728833444935,-151.0,0.00028493,7]
[340202752,1728833444947,-151.0,0.00028493,7]
[340202753,1728833444956,-500.0,0.00028493,2]
[340202754,1728833444966,-3805.75,0.00028493,2]
[340202755,1728833444975,-151.0,0.00028493,7]
[340202756,1728833444985,-490.901145,0.00028493,7]
[340202757,1728833444995,-490.901145,0.00028493,7]
[340202758,1728833445004,-500.0,0.00028493,2]
[340202759,1728833445013,-33290.15,0.00028493,2]
[340202760,1728833445023,-151.0,0.00028493,7]
[340202761,1728833445033,-500.0,0.00028493,2]
[340202762,1728833445042,-151.0,0.00028493,7]
[340202763,1728833445052,-500.0,0.00028493,2]
[340202764,1728833445062,-529.32,0.00028493,2]
[340202765,1728833445071,-157.194956,0.00028493,7]
[340202766,1728833445081,-157.194956,0.00028493,7]
[340202767,1728833445090,-500.0,0.00028493,2]
[340202768,1728833445100,-153.0,0.00028493,2]
[340202769,1728833445109,-497.02,0.00028506,3]
[340202770,1728833445118,-994.02,0.00028516,3]
[340202771,1728833445129,-1988.04,0.00028517,3]
[340202772,1728833445138,-150.112233,0.000286,8]
[340202773,1728833445148,-150.112236,0.000286,9]
[340202774,1728833445157,-263.900301,0.000286,2]
[340202775,1728833445166,-158.0,0.0002864,5]
[340202776,1728833445176,-209.32419,0.00028647,7]
[340202777,1728833445186,-151.0,0.00028647,7]
[340202778,1728833445197,-1000.0,0.00028656,7]
[340202779,1728833445207,-150.112233,0.000287,10]
[340202780,1728833445216,-150.112233,0.000287,10]
[340202781,1728833445226,-151.0,0.00028742,7]
[340202782,1728833445237,-151.0,0.00028742,7]
[340202783,1728833445247,-1005.3130149,0.00028742,5]
[340202784,1728833445258,-1000.0,0.00028742,5]
[340202785,1728833445269,-1000.0,0.00028742,5]
[340202786,1728833445279,-1000.0,0.00028742,5]
[340202787,1728833445290,-1000.0,0.00028742,5]
[340202788,1728833445300,-500.0,0.00028742,5]
[340202789,1728833445309,-800.95952204,0.00028742,5]
[340202790,1728833445320,-1000.0,0.00028742,5]
[340202791,1728833445330,-204.14089672,0.00028742,5]
[340202806,1728833445960,-500.0,0.00027397,2]
[340202807,1728833445970,-500.0,0.00027671,2]
[340202808,1728833445980,-1445.0,0.000279,2]
[340202809,1728833451677,458.85164741,0.00024566,2]
[340202810,1728833699954,-300.0,0.00025877,2]
[340202811,1728833699980,-300.0,0.00025877,2]
[340202812,1728833700006,-24900.0,0.00025878,2]
[340202813,1728833700032,-174.269224,0.00026212,2]
[340202814,1728833700055,-174.269224,0.00026278,2]
[340202815,1728833700079,-174.269224,0.00026343,2]
[340202816,1728833700103,-186.0,0.00027,2]
[340202817,1728833700125,-1000.0,0.00027046,2]
[340202818,1728833700148,-4086.04503749,0.00027056,2]
[340202819,1728833700171,-8508.35174628,0.00027067,5]
[340202820,1728833700193,-1000.0,0.00027156,2]
[340202821,1728833700217,-345.47070936,0.00027396,2]
[340202822,1728833700241,-194.69584991,0.00027396,2]
[340202823,1728833700264,-258.5493574,0.00027396,2]
[340202824,1728833700289,-265.01756597,0.00027397,2]
[340202825,1728833700311,-500.0,0.00027397,2]
[340202826,1728833700338,-500.0,0.00027397,2]
[340202827,1728833700361,-500.0,0.00027397,2]
[340202828,1728833700388,-6565.53,0.00027397,2]
[340202829,1728833700416,-1261.25,0.00027397,2]
[340202830,1728833700439,-500.0,0.00027397,2]
[340202831,1728833700464,-500.0,0.00027397,2]
[340202832,1728833700488,-500.0,0.00027397,2]
[340202833,1728833700512,-545.73,0.00027397,2]
[340202834,1728833700535,-1615.99,0.00027397,2]
[340202835,1728833700558,-500.0,0.00027397,2]
[340202836,1728833700581,-275.71579568,0.00027397,2]
[340202837,1728833700603,-500.0,0.00027397,2]
[340202838,1728833700625,-598.73716154,0.00027397,2]
[340202839,1728833700651,-682.36,0.00027397,2]
[340202840,1728833700674,-500.0,0.00027397,2]
[340202841,1728833700697,-27741.79,0.00027397,2]
[340202842,1728833700721,-500.0,0.00027397,2]
[340202843,1728833700743,-500.0,0.00027397,2]
[340202844,1728833700764,-315.77304685,0.00027397,2]
[340202845,1728833700793,-500.0,0.00027397,2]
[340202846,1728833700815,-500.0,0.00027397,2]
[340202847,1728833700838,-500.0,0.00027397,2]
[340202848,1728833700860,-500.0,0.00027529,5]
[340202849,1728833700882,-200.0,0.0002766,17]
[340202850,1728833700908,-2376.65,0.00027661,10]
[340202851,1728833700931,-4208.77,0.00027661,10]
[340202852,1728833700959,-3507.31,0.00027661,10]
[340202853,1728833700982,-2922.76,0.00027661,10]
[340202854,1728833701005,-167.54898421,0.0002767,2]
[340202855,1728833701028,-311.46083748,0.0002767,2]
[340202856,1728833701049,-192.64777589,0.0002767,2]
[340202857,1728833701071,-500.0,0.00027671,2]
[340202858,1728833701092,-307.93734544,0.00027671,2]
[340202859,1728833701115,-500.0,0.00027671,2]
[340202860,1728833701138,-6565.53,0.00027671,2]
[340202861,1728833701162,-1261.25,0.00027671,2]
[340202862,1728833701292,-599.887063,0.00027671,2]
[340202863,1728833701314,-500.0,0.00027671,2]
[340202864,1728833701335,-500.0,0.00027671,2]
[340202865,1728833701357,-545.73,0.00027671,2]
[340202866,1728833701380,-1615.99,0.00027671,2]
[340202867,1728833701402,-500.0,0.00027671,2]
[340202868,1728833701424,-500.0,0.00027671,2]
[340202869,1728833701445,-682.36,0.00027671,2]
[340202870,1728833701468,-5863.3540515,0.00027671,2]
[340202872,1728833805681,1000.0,0.00024,2]
[340202875,1728833900596,1000.0,0.00024,2]
[340202879,1728834214618,846.0,0.000235,30]
[340202885,1728834404364,-166.666666,0.00025542,2]
[340202886,1728834404389,-300.0,0.0002588,2]
[340202887,1728834404413,-300.0,0.0002588,2]
[340202888,1728834404439,-143.02153788,0.00025881,2]
[340202930,1728834632181,-166.666666,0.00024854,2]
[340202932,1728834632191,-164.392498,0.00025093,2]
[340202935,1728834632203,-166.666666,0.00025532,2]
[340202937,1728834632216,-300.0,0.0002588,2]
[340202939,1728834632226,-300.0,0.0002588,2]
[340202941,1728834632235,-365.54770651,0.00025881,2]
[340202943,1728834632247,-6137.52476307,0.00025881,2]
[340203010,1728834638392,-18253.90599254,0.00025881,2]
[340203012,1728834638403,-500.0,0.000259,2]
[340203014,1728834638415,-250.0,0.00026034,2]
[340203016,1728834638425,-250.0,0.00026105,2]
[340203018,1728834638435,-250.0,0.00026177,2]
[340203020,1728834638445,-166.666666,0.00026209,2]
[340203021,1728834638455,-250.0,0.00026248,2]
[340203024,1728834638465,-250.0,0.0002632,2]
[340203026,1728834638475,-250.0,0.00026391,2]
[340203028,1728834638484,-250.0,0.00026462,2]
[340203030,1728834638494,-150.0,0.00026517,2]
[340203032,1728834638503,-250.0,0.00026534,2]
[340203034,1728834638512,-250.0,0.00026605,2]
[340203036,1728834638521,-250.0,0.00026677,2]
[340203038,1728834638531,-250.0,0.00026748,2]
[340203039,1728834638540,-250.0,0.00026819,2]
[340203041,1728834638551,-166.666666,0.00026887,2]
[340203043,1728834638561,-250.0,0.00026891,2]
[340203045,1728834638570,-3575.28940776,0.000269,2]
[340203047,1728834638580,-250.0,0.00026962,2]
[340203049,1728834638589,-172.10859098,0.00027,2]
[340203051,1728834638599,-150.0,0.00027,2]
[340203053,1728834638608,-194.0,0.00027,2]
[340203055,1728834638617,-250.0,0.00027034,2]
[340203056,1728834638626,-151.0,0.000271,2]
[340203058,1728834638634,-250.0,0.00027105,2]
[340203060,1728834638643,-250.0,0.00027176,2]
[340203062,1728834638653,-250.0,0.00027248,2]
[340203064,1728834638662,-1000.0,0.00027297,2]
[340203065,1728834638671,-250.0,0.00027319,2]
[340203067,1728834638682,-500.0,0.00027373,2]
[340203069,1728834638694,-284.05,0.00027377,3]
[340203071,1728834638706,-1174.59,0.00027377,10]
[340203074,1728834638717,-4926.09171806,0.00027385,2]
[340203075,1728834638726,-218.02258623,0.00027386,2]
[340203077,1728834638738,-59584.6513066,0.00027387,4]
[340203079,1728834638748,-611.62598473,0.00027387,4]
[340203081,1728834638759,-250.0,0.00027391,2]
[340203083,1728834638770,-280.512,0.00027396,16]
[340203085,1728834638781,-612.98190293,0.00027397,2]
[340203087,1728834638792,-500.0,0.00027397,2]
[340203089,1728834638804,-593.01795842,0.00027397,2]
[340203091,1728834638815,-500.0,0.00027397,2]
[340203093,1728834638827,-500.0,0.00027397,2]
[340203095,1728834638839,-373.82635366,0.00027397,2]
[340203098,1728834638851,-500.0,0.00027397,2]
[340203099,1728834638861,-865.94,0.00027397,2]
[340203101,1728834638871,-200.06683521,0.00027397,2]
[340203103,1728834638882,-500.0,0.00027397,2]
[340203105,1728834638892,-500.0,0.00027397,2]
[340203107,1728834638901,-500.0,0.00027397,2]
[340203109,1728834638912,-500.0,0.00027397,2]
[340203111,1728834638923,-500.0,0.00027397,2]
[340203113,1728834638933,-500.0,0.00027397,2]
[340203115,1728834638943,-500.0,0.00027397,2]
[340203116,1728834638953,-397.79335655,0.00027397,2]